[Event "Titled Tuesday Blitz June 27 Early 2023"]
[White "Arhan_Anand"]
[Black "Sethuraman, S.P."]
[BlackFideId "5021596"]
[WhiteElo "2713"]
[BlackElo "2812"]
[Result "0-1"]
[Round "8"]
[TimeControl "180+2"]
[Date "2023.06.27"]
[WhiteClock "0:02:08"]
[BlackClock "0:01:50"]
[Board "28"]

1. d4 {[%clk 0:03:00]}  d5 {[%clk 0:02:59]} 2. c4 {[%clk 0:03:01]}  e6 {[%clk 0:02:59]} 3. Nf3 {[%clk 0:03:01]}  Nf6 {[%clk 0:02:59]} 4. Nc3 {[%clk 0:03:01]}  c6 {[%clk 0:02:57]} 5. e3 {[%clk 0:02:59]}  Nbd7 {[%clk 0:02:56]} 6. Be2 {[%clk 0:02:59]}  Bd6 {[%clk 0:02:56]} 7. O-O {[%clk 0:02:59]}  O-O {[%clk 0:02:56]} 8. b3 {[%clk 0:02:59]}  b6 {[%clk 0:02:56]} 9. Bb2 {[%clk 0:02:59]}  Bb7 {[%clk 0:02:56]} 10. Bd3 {[%clk 0:02:59]}  Re8 {[%clk 0:02:55]} 11. Qc2 {[%clk 0:02:56]}  Rc8 {[%clk 0:02:55]} 12. Rac1 {[%clk 0:02:55]}  Qe7 {[%clk 0:02:51]} 13. Rfe1 {[%clk 0:02:54]}  dxc4 {[%clk 0:02:46]} 14. bxc4 {[%clk 0:02:54]}  c5 {[%clk 0:02:46]} 15. d5 {[%clk 0:02:47]}  exd5 {[%clk 0:02:46]} 16. cxd5 {[%clk 0:02:48]}  c4 {[%clk 0:02:45]} 17. Bf5 {[%clk 0:02:47]}  g6 {[%clk 0:02:33]} 18. Bxd7 {[%clk 0:02:47]}  Nxd7 {[%clk 0:02:31]} 19. e4 {[%clk 0:02:42]}  Bf4 {[%clk 0:02:15]} 20. Rcd1 {[%clk 0:02:39]}  Nc5 {[%clk 0:02:10]} 21. Nb5 {[%clk 0:02:28]}  Nd3 {[%clk 0:02:01]} 22. Rxd3 {[%clk 0:02:21]}  cxd3 {[%clk 0:02:01]} 23. Qxd3 {[%clk 0:02:22]}  Qb4 {[%clk 0:01:58]} 24. Bc3 {[%clk 0:02:19]}  Qc4 {[%clk 0:01:58]} 25. Qxc4 {[%clk 0:02:14]}  Rxc4 {[%clk 0:01:59]} 26. g3 {[%clk 0:02:14]}  Bb8 {[%clk 0:01:56]} 27. Nd2 {[%clk 0:02:13]}  Rc5 {[%clk 0:01:51]} 28. Nd4 {[%clk 0:02:08]}  Rxc3 {[%clk 0:01:50]} 0-1


[Site "https://www.chess.com"]

[Event "Titled Tuesday Blitz June 27 Early 2023"]
[White "Rahman, Masruri"]
[Black "Leon Oquendo, Jorge"]
[WhiteFideId "7101163"]
[BlackFideId "3514803"]
[WhiteElo "2804"]
[BlackElo "2687"]
[Result "0-1"]
[Round "8"]
[TimeControl "180+2"]
[Date "2023.06.27"]
[WhiteClock "0:00:00"]
[BlackClock "0:00:16"]
[Board "29"]

1. d4 {[%clk 0:03:00]}  Nf6 {[%clk 0:02:59]} 2. Bf4 {[%clk 0:03:00]}  d5 {[%clk 0:02:48]} 3. e3 {[%clk 0:03:00]}  e6 {[%clk 0:02:43]} 4. Nd2 {[%clk 0:02:58]}  Bd6 {[%clk 0:02:44]} 5. Bg3 {[%clk 0:02:56]}  O-O {[%clk 0:02:43]} 6. Bd3 {[%clk 0:02:56]}  c5 {[%clk 0:02:42]} 7. c3 {[%clk 0:02:56]}  Nc6 {[%clk 0:02:40]} 8. Ngf3 {[%clk 0:02:56]}  b6 {[%clk 0:02:35]} 9. e4 {[%clk 0:02:55]}  dxe4 {[%clk 0:02:28]} 10. Nxe4 {[%clk 0:02:56]}  Nxe4 {[%clk 0:02:24]} 11. Bxe4 {[%clk 0:02:57]}  Bb7 {[%clk 0:02:24]} 12. dxc5 {[%clk 0:02:56]}  Bxc5 {[%clk 0:02:20]} 13. Qa4 {[%clk 0:02:54]}  Qc8 {[%clk 0:02:08]} 14. Bxh7+ {[%clk 0:02:47]}  Kxh7 {[%clk 0:02:06]} 15. Qh4+ {[%clk 0:02:46]}  Kg8 {[%clk 0:01:28]} 16. Ng5 {[%clk 0:02:46]}  Rd8 {[%clk 0:01:17]} 17. Qh7+ {[%clk 0:02:44]}  Kf8 {[%clk 0:01:17]} 18. Qh8+ {[%clk 0:02:44]}  Ke7 {[%clk 0:01:17]} 19. Qxg7 {[%clk 0:02:45]}  Rf8 {[%clk 0:00:56]} 20. Rd1 {[%clk 0:02:20]}  Qe8 {[%clk 0:00:55]} 21. Nh7 {[%clk 0:02:05]}  Qc8 {[%clk 0:00:36]} 22. Bh4+ {[%clk 0:01:43]}  Ke8 {[%clk 0:00:35]} 23. Nf6+ {[%clk 0:01:43]}  Ke7 {[%clk 0:00:35]} 24. O-O {[%clk 0:00:40]}  a5 {[%clk 0:00:34]} 25. Rd2 {[%clk 0:00:30]}  Ra7 {[%clk 0:00:34]} 26. Rd7+ {[%clk 0:00:14]}  Qxd7 {[%clk 0:00:34]} 27. Nxd7+ {[%clk 0:00:15]}  Kxd7 {[%clk 0:00:34]} 28. Rd1+ {[%clk 0:00:13]}  Kc8 {[%clk 0:00:33]} 29. a3 {[%clk 0:00:11]}  a4 {[%clk 0:00:33]} 30. Qg5 {[%clk 0:00:09]}  Ba6 {[%clk 0:00:31]} 31. Bg3 {[%clk 0:00:09]}  Rd7 {[%clk 0:00:31]} 32. Rxd7 {[%clk 0:00:08]}  Kxd7 {[%clk 0:00:32]} 33. Qf4 {[%clk 0:00:08]}  e5 {[%clk 0:00:30]} 34. Qxa4 {[%clk 0:00:08]}  Bb7 {[%clk 0:00:27]} 35. Qg4+ {[%clk 0:00:07]}  Kc7 {[%clk 0:00:25]} 36. b4 {[%clk 0:00:06]}  Bd6 {[%clk 0:00:25]} 37. Qc4 {[%clk 0:00:05]}  Kb8 {[%clk 0:00:23]} 38. h4 {[%clk 0:00:04]}  f5 {[%clk 0:00:22]} 39. Qd5 {[%clk 0:00:04]}  Bc7 {[%clk 0:00:22]} 40. f3 {[%clk 0:00:01]}  f4 {[%clk 0:00:21]} 41. Bf2 {[%clk 0:00:01]}  Rd8 {[%clk 0:00:22]} 42. Qc4 {[%clk 0:00:02]}  Ne7 {[%clk 0:00:20]} 43. Qe6 {[%clk 0:00:02]}  Bd6 {[%clk 0:00:19]} 44. h5 {[%clk 0:00:02]}  Bc8 {[%clk 0:00:19]} 45. Qc4 {[%clk 0:00:02]}  Bc7 {[%clk 0:00:18]} 46. Qb5 {[%clk 0:00:02]}  Kb7 {[%clk 0:00:16]} 47. c4 {[%clk 0:00:00]}  Nf5 {[%clk 0:00:16]} 0-1


[Site "https://www.chess.com"]

[Event "Titled Tuesday Blitz June 27 Early 2023"]
[White "Sevian, Samuel"]
[Black "Kourkoulos-Arditis, Stamatis"]
[WhiteFideId "2040506"]
[BlackFideId "4221990"]
[WhiteElo "3045"]
[BlackElo "2685"]
[Result "0-1"]
[Round "8"]
[TimeControl "180+2"]
[Date "2023.06.27"]
[WhiteClock "0:01:36"]
[BlackClock "0:00:27"]
[Board "32"]

1. d4 {[%clk 0:02:57]}  Nf6 {[%clk 0:02:58]} 2. Nf3 {[%clk 0:02:58]}  c5 {[%clk 0:02:58]} 3. d5 {[%clk 0:02:58]}  g6 {[%clk 0:02:58]} 4. g4 {[%clk 0:02:55]}  Bg7 {[%clk 0:02:56]} 5. g5 {[%clk 0:02:55]}  Ne4 {[%clk 0:02:56]} 6. Nbd2 {[%clk 0:02:52]}  Nxd2 {[%clk 0:02:56]} 7. Bxd2 {[%clk 0:02:53]}  d6 {[%clk 0:02:45]} 8. Bg2 {[%clk 0:02:52]}  Bg4 {[%clk 0:02:39]} 9. c3 {[%clk 0:02:50]}  Bxf3 {[%clk 0:02:36]} 10. Bxf3 {[%clk 0:02:49]}  Nd7 {[%clk 0:02:36]} 11. h4 {[%clk 0:02:49]}  h5 {[%clk 0:02:34]} 12. Qa4 {[%clk 0:02:39]}  O-O {[%clk 0:02:30]} 13. Bg2 {[%clk 0:02:39]}  b5 {[%clk 0:02:29]} 14. Qc2 {[%clk 0:02:36]}  a5 {[%clk 0:02:26]} 15. O-O {[%clk 0:02:35]}  b4 {[%clk 0:02:26]} 16. c4 {[%clk 0:02:35]}  a4 {[%clk 0:02:26]} 17. Rae1 {[%clk 0:02:34]}  b3 {[%clk 0:02:23]} 18. axb3 {[%clk 0:02:34]}  axb3 {[%clk 0:02:24]} 19. Qxb3 {[%clk 0:02:34]}  Rb8 {[%clk 0:02:24]} 20. Qd1 {[%clk 0:02:34]}  Rxb2 {[%clk 0:02:24]} 21. f4 {[%clk 0:02:31]}  Nb6 {[%clk 0:02:18]} 22. Qc1 {[%clk 0:02:26]}  Rxd2 {[%clk 0:01:44]} 23. Qxd2 {[%clk 0:02:21]}  Nxc4 {[%clk 0:01:44]} 24. Qd3 {[%clk 0:02:20]}  Ne3 {[%clk 0:01:44]} 25. Rf3 {[%clk 0:02:20]}  Nf5 {[%clk 0:01:39]} 26. Bh3 {[%clk 0:02:17]}  Nxh4 {[%clk 0:01:33]} 27. Rf2 {[%clk 0:02:17]}  Qa5 {[%clk 0:01:21]} 28. Ref1 {[%clk 0:02:08]}  Qc3 {[%clk 0:01:01]} 29. Qxc3 {[%clk 0:02:03]}  Bxc3 {[%clk 0:01:02]} 30. e3 {[%clk 0:02:04]}  Rb8 {[%clk 0:00:52]} 31. Kh2 {[%clk 0:02:03]}  Rb3 {[%clk 0:00:48]} 32. f5 {[%clk 0:01:52]}  Be5+ {[%clk 0:00:47]} 33. Kg1 {[%clk 0:01:52]}  Rxe3 {[%clk 0:00:42]} 34. fxg6 {[%clk 0:01:52]}  Rxh3 {[%clk 0:00:36]} 35. gxf7+ {[%clk 0:01:51]}  Kf8 {[%clk 0:00:35]} 36. Rb1 {[%clk 0:01:47]}  Nf3+ {[%clk 0:00:30]} 37. Kf1 {[%clk 0:01:44]}  Rh1+ {[%clk 0:00:27]} 38. Kg2 {[%clk 0:01:39]}  Rxb1 {[%clk 0:00:27]} 39. Rxf3 {[%clk 0:01:36]}  Rb4 {[%clk 0:00:27]} 0-1


[Site "https://www.chess.com"]

[Event "Titled Tuesday Blitz June 27 Early 2023"]
[White "Goryachkina, Aleksandra"]
[Black "Movahed, Sina"]
[WhiteFideId "4147103"]
[BlackFideId "42520835"]
[WhiteElo "2687"]
[BlackElo "2920"]
[Result "0-1"]
[Round "8"]
[TimeControl "180+2"]
[Date "2023.06.27"]
[WhiteClock "0:00:00"]
[BlackClock "0:01:40"]
[Board "33"]

1. e4 {[%clk 0:02:59]}  c5 {[%clk 0:02:59]} 2. Nf3 {[%clk 0:02:59]}  d6 {[%clk 0:02:59]} 3. Bb5+ {[%clk 0:02:58]}  Bd7 {[%clk 0:02:59]} 4. Bxd7+ {[%clk 0:02:58]}  Qxd7 {[%clk 0:03:00]} 5. O-O {[%clk 0:02:58]}  Nf6 {[%clk 0:03:00]} 6. Re1 {[%clk 0:02:59]}  Nc6 {[%clk 0:03:00]} 7. c3 {[%clk 0:02:59]}  e6 {[%clk 0:02:59]} 8. d4 {[%clk 0:02:59]}  cxd4 {[%clk 0:03:00]} 9. cxd4 {[%clk 0:02:59]}  d5 {[%clk 0:03:01]} 10. e5 {[%clk 0:02:59]}  Ne4 {[%clk 0:03:01]} 11. Re3 {[%clk 0:02:59]}  Be7 {[%clk 0:02:56]} 12. Nc3 {[%clk 0:02:58]}  Nxc3 {[%clk 0:02:56]} 13. bxc3 {[%clk 0:02:58]}  Na5 {[%clk 0:02:51]} 14. Rb1 {[%clk 0:02:46]}  O-O-O {[%clk 0:02:50]} 15. Ne1 {[%clk 0:02:33]}  Kb8 {[%clk 0:02:45]} 16. Rg3 {[%clk 0:02:31]}  g6 {[%clk 0:02:42]} 17. Bg5 {[%clk 0:02:26]}  Bxg5 {[%clk 0:02:41]} 18. Rxg5 {[%clk 0:02:26]}  Rc8 {[%clk 0:02:42]} 19. Rg3 {[%clk 0:02:25]}  Rc7 {[%clk 0:02:40]} 20. Nd3 {[%clk 0:02:22]}  Rhc8 {[%clk 0:02:35]} 21. Nc5 {[%clk 0:02:20]}  Qc6 {[%clk 0:02:34]} 22. Qe2 {[%clk 0:01:57]}  Ka8 {[%clk 0:02:30]} 23. h3 {[%clk 0:01:54]}  b6 {[%clk 0:02:28]} 24. Na6 {[%clk 0:01:44]}  Rb7 {[%clk 0:02:27]} 25. Nb4 {[%clk 0:01:27]}  Qc4 {[%clk 0:02:24]} 26. Qd2 {[%clk 0:01:25]}  Nc6 {[%clk 0:02:21]} 27. Nxc6 {[%clk 0:00:51]}  Qxc6 {[%clk 0:02:22]} 28. Rb3 {[%clk 0:00:51]}  h5 {[%clk 0:02:21]} 29. Rf3 {[%clk 0:00:48]}  Qa4 {[%clk 0:02:20]} 30. Rb4 {[%clk 0:00:27]}  Qa5 {[%clk 0:02:17]} 31. Qb2 {[%clk 0:00:25]}  Rbc7 {[%clk 0:02:16]} 32. Rb5 {[%clk 0:00:19]}  Qa4 {[%clk 0:02:14]} 33. Rb4 {[%clk 0:00:18]}  Qd1+ {[%clk 0:02:05]} 34. Kh2 {[%clk 0:00:18]}  g5 {[%clk 0:02:04]} 35. a4 {[%clk 0:00:09]}  g4 {[%clk 0:02:03]} 36. Re3 {[%clk 0:00:09]}  Rg8 {[%clk 0:01:55]} 37. h4 {[%clk 0:00:08]}  Qf1 {[%clk 0:01:48]} 38. a5 {[%clk 0:00:05]}  bxa5 {[%clk 0:01:47]} 39. Rb5 {[%clk 0:00:05]}  Qc4 {[%clk 0:01:45]} 40. Rxa5 {[%clk 0:00:04]}  Rb8 {[%clk 0:01:45]} 41. Qa3 {[%clk 0:00:04]}  Qb3 {[%clk 0:01:43]} 42. Qa1 {[%clk 0:00:03]}  Qb2 {[%clk 0:01:42]} 43. Qa4 {[%clk 0:00:00]}  Qxf2 {[%clk 0:01:40]} 0-1


[Site "https://www.chess.com"]

[Event "Titled Tuesday Blitz June 27 Early 2023"]
[White "Chigaev, Maksim"]
[Black "Eugene, Floryan"]
[WhiteFideId "4108116"]
[BlackFideId "20694784"]
[WhiteElo "2887"]
[BlackElo "2676"]
[Result "1-0"]
[Round "8"]
[TimeControl "180+2"]
[Date "2023.06.27"]
[WhiteClock "0:00:07"]
[BlackClock "0:00:05"]
[Board "35"]

1. e4 {[%clk 0:03:00]}  c5 {[%clk 0:02:59]} 2. Nf3 {[%clk 0:02:59]}  Nc6 {[%clk 0:02:56]} 3. Nc3 {[%clk 0:02:58]}  Nf6 {[%clk 0:02:55]} 4. Bb5 {[%clk 0:02:57]}  Qc7 {[%clk 0:02:45]} 5. O-O {[%clk 0:02:51]}  e6 {[%clk 0:02:41]} 6. Bxc6 {[%clk 0:02:44]}  bxc6 {[%clk 0:02:37]} 7. e5 {[%clk 0:02:39]}  Nd5 {[%clk 0:02:36]} 8. Re1 {[%clk 0:02:37]}  Be7 {[%clk 0:02:34]} 9. b3 {[%clk 0:02:30]}  c4 {[%clk 0:02:23]} 10. Ne4 {[%clk 0:02:24]}  cxb3 {[%clk 0:02:20]} 11. axb3 {[%clk 0:02:24]}  O-O {[%clk 0:02:15]} 12. c4 {[%clk 0:02:22]}  Nb4 {[%clk 0:02:07]} 13. d4 {[%clk 0:02:16]}  f5 {[%clk 0:02:02]} 14. exf6 {[%clk 0:02:10]}  gxf6 {[%clk 0:02:01]} 15. Bh6 {[%clk 0:02:10]}  Rf7 {[%clk 0:01:59]} 16. Qd2 {[%clk 0:02:07]}  d5 {[%clk 0:01:46]} 17. Bf4 {[%clk 0:02:00]}  Qd8 {[%clk 0:01:38]} 18. Ng3 {[%clk 0:01:28]}  a5 {[%clk 0:01:30]} 19. h3 {[%clk 0:01:20]}  Kh8 {[%clk 0:01:29]} 20. Kh2 {[%clk 0:01:19]}  Bd7 {[%clk 0:01:28]} 21. Kh1 {[%clk 0:01:14]}  Qe8 {[%clk 0:01:23]} 22. Re2 {[%clk 0:01:03]}  Rg7 {[%clk 0:01:21]} 23. Rae1 {[%clk 0:01:01]}  Qf7 {[%clk 0:01:21]} 24. Nh2 {[%clk 0:00:58]}  Rag8 {[%clk 0:01:18]} 25. Bc7 {[%clk 0:00:56]}  Na6 {[%clk 0:01:08]} 26. Bxa5 {[%clk 0:00:54]}  Bd6 {[%clk 0:01:09]} 27. Ng4 {[%clk 0:00:34]}  Bxg3 {[%clk 0:00:51]} 28. fxg3 {[%clk 0:00:26]}  e5 {[%clk 0:00:45]} 29. Nh6 {[%clk 0:00:20]}  Qh5 {[%clk 0:00:46]} 30. Nxg8 {[%clk 0:00:16]}  Kxg8 {[%clk 0:00:44]} 31. dxe5 {[%clk 0:00:13]}  Bxh3 {[%clk 0:00:35]} 32. exf6 {[%clk 0:00:13]}  Bd7+ {[%clk 0:00:09]} 33. Kg1 {[%clk 0:00:13]}  Rxg3 {[%clk 0:00:09]} 34. Qf4 {[%clk 0:00:09]}  Qg6 {[%clk 0:00:05]} 35. f7+ {[%clk 0:00:08]}  Kf8 {[%clk 0:00:03]} 36. Re8+ {[%clk 0:00:07]}  Bxe8 {[%clk 0:00:04]} 37. Rxe8+ {[%clk 0:00:07]}  Kg7 {[%clk 0:00:05]} 38. f8=Q# {[%clk 0:00:07]} 1-0


[Site "https://www.chess.com"]

[Event "Titled Tuesday Blitz June 27 Early 2023"]
[White "Kvaloy, Aksel Bu"]
[Black "Zhigalko, Sergei"]
[WhiteFideId "1528815"]
[BlackFideId "13502956"]
[WhiteElo "2674"]
[BlackElo "2877"]
[Result "0-1"]
[Round "8"]
[TimeControl "180+2"]
[Date "2023.06.27"]
[WhiteClock "0:00:00"]
[BlackClock "0:00:21"]
[Board "36"]

1. e4 {[%clk 0:03:00]}  c5 {[%clk 0:03:00]} 2. Nf3 {[%clk 0:02:55]}  Nc6 {[%clk 0:03:00]} 3. b4 {[%clk 0:02:54]}  Nxb4 {[%clk 0:03:00]} 4. c3 {[%clk 0:02:53]}  Nc6 {[%clk 0:03:00]} 5. d4 {[%clk 0:02:54]}  d5 {[%clk 0:03:01]} 6. exd5 {[%clk 0:02:45]}  Qxd5 {[%clk 0:03:01]} 7. Be2 {[%clk 0:02:39]}  cxd4 {[%clk 0:02:54]} 8. cxd4 {[%clk 0:02:40]}  e6 {[%clk 0:02:53]} 9. O-O {[%clk 0:02:40]}  Nf6 {[%clk 0:02:54]} 10. Nc3 {[%clk 0:02:39]}  Qd8 {[%clk 0:02:52]} 11. Bg5 {[%clk 0:02:26]}  Be7 {[%clk 0:02:51]} 12. Rc1 {[%clk 0:02:16]}  O-O {[%clk 0:02:46]} 13. Qd2 {[%clk 0:02:15]}  b6 {[%clk 0:02:32]} 14. Bc4 {[%clk 0:01:34]}  Bb7 {[%clk 0:02:22]} 15. d5 {[%clk 0:01:34]}  Na5 {[%clk 0:02:22]} 16. d6 {[%clk 0:01:20]}  Qxd6 {[%clk 0:02:10]} 17. Bd3 {[%clk 0:01:15]}  Rfd8 {[%clk 0:01:44]} 18. Rfd1 {[%clk 0:01:14]}  Bxf3 {[%clk 0:01:40]} 19. gxf3 {[%clk 0:01:15]}  Qb4 {[%clk 0:01:30]} 20. Qe2 {[%clk 0:00:56]}  h6 {[%clk 0:01:23]} 21. Bd2 {[%clk 0:00:41]}  Qh4 {[%clk 0:01:21]} 22. Ne4 {[%clk 0:00:39]}  Nd5 {[%clk 0:01:13]} 23. Ng3 {[%clk 0:00:33]}  Bg5 {[%clk 0:01:09]} 24. Bxg5 {[%clk 0:00:24]}  Qxg5 {[%clk 0:01:04]} 25. Qe4 {[%clk 0:00:23]}  g6 {[%clk 0:01:02]} 26. h4 {[%clk 0:00:21]}  Qf4 {[%clk 0:00:52]} 27. h5 {[%clk 0:00:18]}  Qxe4 {[%clk 0:00:40]} 28. Bxe4 {[%clk 0:00:19]}  gxh5 {[%clk 0:00:36]} 29. Nxh5 {[%clk 0:00:19]}  Kf8 {[%clk 0:00:36]} 30. Bxd5 {[%clk 0:00:17]}  Rxd5 {[%clk 0:00:36]} 31. Rxd5 {[%clk 0:00:16]}  exd5 {[%clk 0:00:37]} 32. Rc7 {[%clk 0:00:12]}  Rd8 {[%clk 0:00:34]} 33. Kf1 {[%clk 0:00:12]}  d4 {[%clk 0:00:26]} 34. Ke2 {[%clk 0:00:10]}  d3+ {[%clk 0:00:27]} 35. Kd1 {[%clk 0:00:07]}  b5 {[%clk 0:00:27]} 36. Rc5 {[%clk 0:00:04]}  a6 {[%clk 0:00:21]} 37. a4 {[%clk 0:00:04]}  Nb3 {[%clk 0:00:21]} 38. Rc6 {[%clk 0:00:03]}  bxa4 {[%clk 0:00:21]} 39. Rxa6 {[%clk 0:00:00]}  Rc8 {[%clk 0:00:21]} 0-1


[Site "https://www.chess.com"]

[Event "Titled Tuesday Blitz June 27 Early 2023"]
[White "Kjartansson, David"]
[Black "Bharath Subramaniyam H"]
[WhiteFideId "2301130"]
[BlackFideId "46634827"]
[WhiteElo "2674"]
[BlackElo "2821"]
[Result "0-1"]
[Round "8"]
[TimeControl "180+2"]
[Date "2023.06.27"]
[WhiteClock "0:00:25"]
[BlackClock "0:00:34"]
[Board "37"]

1. d4 {[%clk 0:02:17]}  Nf6 {[%clk 0:02:47]} 2. Nc3 {[%clk 0:02:17]}  e6 {[%clk 0:02:48]} 3. Bf4 {[%clk 0:02:16]}  d5 {[%clk 0:02:48]} 4. Nb5 {[%clk 0:02:14]}  Na6 {[%clk 0:02:48]} 5. e3 {[%clk 0:02:14]}  Be7 {[%clk 0:02:46]} 6. Nf3 {[%clk 0:02:11]}  O-O {[%clk 0:02:47]} 7. Bd3 {[%clk 0:02:03]}  c5 {[%clk 0:02:46]} 8. c3 {[%clk 0:02:01]}  Bd7 {[%clk 0:02:45]} 9. a4 {[%clk 0:01:58]}  c4 {[%clk 0:02:40]} 10. Bc2 {[%clk 0:01:57]}  Bxb5 {[%clk 0:02:39]} 11. axb5 {[%clk 0:01:56]}  Nc7 {[%clk 0:02:40]} 12. O-O {[%clk 0:01:54]}  Nxb5 {[%clk 0:02:39]} 13. Ne5 {[%clk 0:01:54]}  Nd6 {[%clk 0:02:37]} 14. Qf3 {[%clk 0:01:51]}  a5 {[%clk 0:02:21]} 15. Qh3 {[%clk 0:01:51]}  Qe8 {[%clk 0:02:14]} 16. f3 {[%clk 0:01:46]}  Qc8 {[%clk 0:02:02]} 17. g4 {[%clk 0:01:45]}  g6 {[%clk 0:02:02]} 18. Qg3 {[%clk 0:01:40]}  Nfe8 {[%clk 0:01:59]} 19. h4 {[%clk 0:01:31]}  f6 {[%clk 0:01:56]} 20. Nxg6 {[%clk 0:01:16]}  hxg6 {[%clk 0:01:56]} 21. Bxg6 {[%clk 0:01:17]}  Nf7 {[%clk 0:01:56]} 22. h5 {[%clk 0:01:09]}  Qd7 {[%clk 0:01:52]} 23. e4 {[%clk 0:01:06]}  Bd6 {[%clk 0:01:40]} 24. e5 {[%clk 0:01:03]}  fxe5 {[%clk 0:01:40]} 25. dxe5 {[%clk 0:01:04]}  Bc5+ {[%clk 0:01:38]} 26. Kh1 {[%clk 0:01:01]}  b5 {[%clk 0:01:29]} 27. Rad1 {[%clk 0:00:55]}  b4 {[%clk 0:01:27]} 28. Bb1 {[%clk 0:00:51]}  bxc3 {[%clk 0:01:24]} 29. bxc3 {[%clk 0:00:52]}  Qe7 {[%clk 0:01:13]} 30. g5 {[%clk 0:00:51]}  Ng7 {[%clk 0:00:52]} 31. g6 {[%clk 0:00:45]}  Nh8 {[%clk 0:00:46]} 32. h6 {[%clk 0:00:43]}  Nh5 {[%clk 0:00:45]} 33. Qg5 {[%clk 0:00:22]}  Rxf4 {[%clk 0:00:42]} 34. Qxe7 {[%clk 0:00:18]}  Bxe7 {[%clk 0:00:41]} 35. Kg2 {[%clk 0:00:15]}  Rh4 {[%clk 0:00:36]} 36. Rh1 {[%clk 0:00:15]}  Nf4+ {[%clk 0:00:35]} 37. Kg3 {[%clk 0:00:15]}  Rxh1 {[%clk 0:00:36]} 38. Rxh1 {[%clk 0:00:16]}  Nfxg6 {[%clk 0:00:36]} 39. h7+ {[%clk 0:00:16]}  Kg7 {[%clk 0:00:37]} 40. Kg4 {[%clk 0:00:16]}  a4 {[%clk 0:00:36]} 41. f4 {[%clk 0:00:17]}  a3 {[%clk 0:00:37]} 42. Ba2 {[%clk 0:00:18]}  Rf8 {[%clk 0:00:35]} 43. Rb1 {[%clk 0:00:18]}  Rxf4+ {[%clk 0:00:35]} 44. Kg3 {[%clk 0:00:18]}  Bh4+ {[%clk 0:00:35]} 45. Kg2 {[%clk 0:00:18]}  Nxe5 {[%clk 0:00:35]} 46. Kh3 {[%clk 0:00:19]}  Kxh7 {[%clk 0:00:35]} 47. Rb7+ {[%clk 0:00:20]}  Kh6 {[%clk 0:00:35]} 48. Bb1 {[%clk 0:00:20]}  Nhg6 {[%clk 0:00:34]} 49. Rh7+ {[%clk 0:00:21]}  Kxh7 {[%clk 0:00:34]} 50. Bf5 {[%clk 0:00:22]}  Rxf5 {[%clk 0:00:34]} 51. Kg2 {[%clk 0:00:23]}  a2 {[%clk 0:00:35]} 52. Kh1 {[%clk 0:00:24]}  a1=Q+ {[%clk 0:00:35]} 53. Kg2 {[%clk 0:00:25]}  Rf2+ {[%clk 0:00:35]} 54. Kh3 {[%clk 0:00:25]}  Qh1# {[%clk 0:00:34]} 0-1


[Site "https://www.chess.com"]

[Event "Titled Tuesday Blitz June 27 Early 2023"]
[White "Elsa167"]
[Black "Manukyan, Sargis A."]
[BlackFideId "13303970"]
[WhiteElo "2813"]
[BlackElo "2671"]
[Result "1-0"]
[Round "8"]
[TimeControl "180+2"]
[Date "2023.06.27"]
[WhiteClock "0:02:04"]
[BlackClock "0:01:09"]
[Board "38"]

1. e4 {[%clk 0:03:00]}  c5 {[%clk 0:02:58]} 2. Nf3 {[%clk 0:03:01]}  d6 {[%clk 0:02:56]} 3. d4 {[%clk 0:03:01]}  cxd4 {[%clk 0:02:57]} 4. Nxd4 {[%clk 0:03:02]}  Nf6 {[%clk 0:02:58]} 5. Nc3 {[%clk 0:03:02]}  g6 {[%clk 0:02:58]} 6. f4 {[%clk 0:02:57]}  Bg7 {[%clk 0:02:56]} 7. e5 {[%clk 0:02:47]}  dxe5 {[%clk 0:02:57]} 8. fxe5 {[%clk 0:02:47]}  Nh5 {[%clk 0:02:49]} 9. Bb5+ {[%clk 0:02:46]}  Bd7 {[%clk 0:02:46]} 10. e6 {[%clk 0:02:43]}  Bxb5 {[%clk 0:02:41]} 11. exf7+ {[%clk 0:02:35]}  Kxf7 {[%clk 0:02:38]} 12. Ncxb5 {[%clk 0:02:33]}  Nc6 {[%clk 0:02:37]} 13. Qf3+ {[%clk 0:02:32]}  Nf6 {[%clk 0:02:29]} 14. Nxc6 {[%clk 0:02:24]}  bxc6 {[%clk 0:02:29]} 15. Qxc6 {[%clk 0:02:15]}  Rc8 {[%clk 0:02:23]} 16. Qf3 {[%clk 0:02:14]}  Qb6 {[%clk 0:01:42]} 17. Qb3+ {[%clk 0:02:09]}  e6 {[%clk 0:01:41]} 18. Be3 {[%clk 0:02:08]}  Qc6 {[%clk 0:01:25]} 19. O-O {[%clk 0:02:05]}  Qxc2 {[%clk 0:01:22]} 20. Nd6+ {[%clk 0:02:05]}  Kg8 {[%clk 0:01:09]} 21. Qxe6+ {[%clk 0:02:04]} 1-0


[Site "https://www.chess.com"]

[Event "Titled Tuesday Blitz June 27 Early 2023"]
[White "Alex_Sahakyan2006"]
[Black "Ohanyan, Emin"]
[BlackFideId "13312022"]
[WhiteElo "2660"]
[BlackElo "2811"]
[Result "0-1"]
[Round "8"]
[TimeControl "180+2"]
[Date "2023.06.27"]
[WhiteClock "0:00:10"]
[BlackClock "0:00:05"]
[Board "39"]

1. d4 {[%clk 0:03:00]}  Nf6 {[%clk 0:02:57]} 2. Nf3 {[%clk 0:03:00]}  d5 {[%clk 0:02:57]} 3. Bf4 {[%clk 0:02:58]}  c5 {[%clk 0:02:56]} 4. e3 {[%clk 0:02:57]}  Nc6 {[%clk 0:02:57]} 5. c3 {[%clk 0:02:57]}  Qb6 {[%clk 0:02:56]} 6. Qb3 {[%clk 0:02:57]}  c4 {[%clk 0:02:57]} 7. Qc2 {[%clk 0:02:57]}  Bf5 {[%clk 0:02:57]} 8. Qc1 {[%clk 0:02:58]}  e6 {[%clk 0:02:57]} 9. Nh4 {[%clk 0:02:56]}  Be4 {[%clk 0:02:35]} 10. Nd2 {[%clk 0:02:55]}  Rc8 {[%clk 0:02:18]} 11. Be2 {[%clk 0:02:54]}  Be7 {[%clk 0:02:16]} 12. Nxe4 {[%clk 0:02:51]}  dxe4 {[%clk 0:01:49]} 13. g4 {[%clk 0:02:02]}  Nxg4 {[%clk 0:01:31]} 14. Bxg4 {[%clk 0:02:03]}  Bxh4 {[%clk 0:01:31]} 15. d5 {[%clk 0:02:00]}  Ne7 {[%clk 0:01:23]} 16. dxe6 {[%clk 0:01:50]}  f5 {[%clk 0:01:18]} 17. Bh5+ {[%clk 0:01:50]}  g6 {[%clk 0:01:18]} 18. Be2 {[%clk 0:01:47]}  Qxe6 {[%clk 0:01:17]} 19. Qc2 {[%clk 0:01:44]}  Kf7 {[%clk 0:00:53]} 20. O-O-O {[%clk 0:01:42]}  Nd5 {[%clk 0:00:26]} 21. Rxd5 {[%clk 0:01:26]}  Qxd5 {[%clk 0:00:27]} 22. Rd1 {[%clk 0:01:26]}  Qe6 {[%clk 0:00:19]} 23. Rd6 {[%clk 0:01:24]}  Qe7 {[%clk 0:00:16]} 24. Qa4 {[%clk 0:01:20]}  Rhd8 {[%clk 0:00:16]} 25. Bxc4+ {[%clk 0:01:20]}  Kg7 {[%clk 0:00:11]} 26. Re6 {[%clk 0:01:10]}  Qc5 {[%clk 0:00:10]} 27. Bb3 {[%clk 0:00:50]}  Bxf2 {[%clk 0:00:10]} 28. a3 {[%clk 0:00:32]}  Bxe3+ {[%clk 0:00:08]} 29. Bxe3 {[%clk 0:00:33]}  Qxe3+ {[%clk 0:00:09]} 30. Kb1 {[%clk 0:00:34]}  Qc5 {[%clk 0:00:06]} 31. Ka2 {[%clk 0:00:27]}  Rc7 {[%clk 0:00:05]} 32. h4 {[%clk 0:00:24]}  Re7 {[%clk 0:00:03]} 33. Rxe7+ {[%clk 0:00:16]}  Qxe7 {[%clk 0:00:04]} 34. Qxa7 {[%clk 0:00:16]}  e3 {[%clk 0:00:05]} 35. h5 {[%clk 0:00:17]}  e2 {[%clk 0:00:05]} 36. hxg6 {[%clk 0:00:10]}  hxg6 {[%clk 0:00:05]} 0-1


[Site "https://www.chess.com"]